fUSD/lending_fUSD_20260501
["ID","MTS","AMOUNT","RATE_DAILY","PERIOD"]
[421415606,1777603369000,-500.0,9.847e-05,2]
[421415607,1777603369000,-500.0,9.847e-05,2]
[421415605,1777603369000,-500.0,9.847e-05,2]
[421415604,1777603369000,-500.0,9.847e-05,2]
[421415603,1777603369000,-491.46157005,9.847e-05,2]
[421415609,1777603369000,-500.0,9.847e-05,2]
[421415617,1777603369000,-500.0,9.847e-05,2]
[421415634,1777603369000,-150.0,9.847e-05,2]
[421415619,1777603369000,-500.0,9.847e-05,2]
[421415635,1777603369000,-300.0,9.847e-05,2]
[421415636,1777603369000,-173705.75867573,9.848e-05,2]
[421415632,1777603369000,-500.0,9.847e-05,2]
[421415633,1777603369000,-500.0,9.847e-05,2]
[421415631,1777603369000,-500.0,9.847e-05,2]
[421415628,1777603369000,-500.0,9.847e-05,2]
[421415630,1777603369000,-212.33526818,9.847e-05,2]
[421415620,1777603369000,-500.0,9.847e-05,2]
[421415626,1777603369000,-500.0,9.847e-05,2]
[421415627,1777603369000,-500.0,9.847e-05,2]
[421415624,1777603369000,-500.0,9.847e-05,2]
[421415625,1777603369000,-500.0,9.847e-05,2]
[421415623,1777603369000,-500.0,9.847e-05,2]
[421415621,1777603369000,-500.0,9.847e-05,2]
[421415622,1777603369000,-500.0,9.847e-05,2]
[421415629,1777603369000,-500.0,9.847e-05,2]
[421415637,1777603425000,-506.71389608,9.847e-05,2]
[421415638,1777603425000,-193.28610392,9.848e-05,2]
[421415639,1777603452000,-300.0,9.847e-05,2]
[421415640,1777603452000,-9300.0,9.848e-05,2]
[421415641,1777603831000,-300.0,9.747e-05,2]
[421415643,1777603831000,-300.0,9.747e-05,2]
[421415642,1777603831000,-1200.0,9.747e-05,2]
[421415648,1777603831000,-362.36399931,9.748e-05,2]
[421415644,1777603831000,-2674.17622993,9.748e-05,2]
[421415647,1777603831000,-491.75,9.748e-05,2]
[421415646,1777603831000,-56401.51515556,9.748e-05,2]
[421415649,1777603831000,-728.743811,9.748e-05,2]
[421415645,1777603831000,-11047.73766624,9.748e-05,2]
[421415650,1777603831000,-1700.23783598,9.748e-05,2]
[421415651,1777603832000,-498.60816711,9.748e-05,2]
[421415670,1777603837000,-500.0,9.747e-05,2]
[421415669,1777603837000,-500.0,9.747e-05,2]
[421415676,1777603838000,-7860.46543182,9.748e-05,2]
[421415673,1777603838000,-2119.34644157,9.748e-05,2]
[421415674,1777603838000,-336.22096291,9.748e-05,2]
[421415675,1777603838000,-1331.50731239,9.748e-05,2]
[421415672,1777603838000,-8644.18121305,9.748e-05,2]
[421415671,1777603838000,-433.7154986,9.747e-05,2]
[421415774,1777603840000,-1136.0,9.748e-05,2]
[421415775,1777603840000,-36394.7565435,9.748e-05,2]
[421415777,1777603840000,-0.62692123,9.748e-05,2]
[421415778,1777603840000,-1596.28143934,9.748e-05,2]
[421415776,1777603840000,-2027.67609915,9.748e-05,2]
[421415779,1777603841000,-1633.54744818,9.748e-05,2]
[421415780,1777603841000,-20232.96582522,9.748e-05,2]
[421415789,1777603842000,-3390.32109516,9.748e-05,2]
[421415788,1777603842000,-1119.91477009,9.748e-05,2]
[421415797,1777603846000,-1752.0561,9.748e-05,2]
[421415796,1777603846000,-509.0,9.748e-05,2]
[421415805,1777603918000,-150.0,9.747e-05,2]
[421415806,1777603932000,-300.0,9.747e-05,2]
[421415809,1777604141000,-300.0,9.747e-05,2]
[421415807,1777604141000,-200.0,9.7e-05,2]
[421415808,1777604141000,-276.0,9.747e-05,2]
[421415810,1777604141000,-150.0,9.747e-05,2]
[421415812,1777604141000,-300.0,9.747e-05,2]
[421415813,1777604141000,-250.0,9.747e-05,2]
[421415814,1777604141000,-29196.26213126,9.748e-05,2]
[421415815,1777604141000,-18127.73786874,9.748e-05,2]
[421415811,1777604141000,-1200.0,9.747e-05,2]
[421415816,1777604150000,-50000.0,9.748e-05,2]
[421415817,1777604159000,-50000.0,9.748e-05,2]
[421415818,1777604195000,501.2,0.00028767,120]
[421415819,1777604245000,-1914.8036,9.648e-05,2]
[421415820,1777604527000,-2287.35674112,9.74e-05,2]
[421415821,1777604542000,-500.0,9.74e-05,2]
[421415822,1777604738000,-300.0,9.659e-05,2]
[421415823,1777604738000,-240.70974157,9.659e-05,2]
[421415824,1777604834000,-37.29025843,9.659e-05,2]
[421415831,1777604947000,-283.97494795,9.74e-05,2]
[421415827,1777604947000,-300.0,9.659e-05,2]
[421415828,1777604947000,-12244.9266118,9.66e-05,2]
[421415830,1777604947000,-500.0,9.74e-05,2]
[421415829,1777604947000,-208.39306152,9.66e-05,2]
[421415832,1777604947000,-3074.6326647,9.92e-05,2]
[421415833,1777604947000,-339.0,0.0001,2]
[421415826,1777604947000,-1200.0,9.659e-05,2]
[421415834,1777604947000,-339.0,0.0001,2]
[421415837,1777604947000,-157.29,0.00010604,2]
[421415835,1777604947000,-201.74257948,0.00010058,2]
[421415838,1777604947000,-302.41072261,0.00010625,2]
[421415839,1777604947000,-1680.0,0.00010625,2]
[421415841,1777604947000,-18.38811748,0.00010626,2]
[421415840,1777604947000,-239.0,0.00010625,2]
[421415836,1777604947000,-340.12048387,0.00010453,2]
[421415844,1777605031000,-84.57190307,0.00010989,2]
[421415843,1777605031000,-65.42809693,0.00010989,2]
[421415842,1777605031000,-250.0,0.00010808,2]
[421415846,1777605031000,-1079.11363133,0.00011085,2]
[421415845,1777605031000,-500.0,0.00011014,2]
[421415857,1777605032000,-151.0,0.00011509,2]
[421415866,1777605032000,-203.68885112,0.0001165,2]
[421415864,1777605032000,-157.12574669,0.00011626,2]
[421415868,1777605032000,-1001.80802509,0.00011659,2]
[421415869,1777605032000,-354.69972725,0.00011659,2]
[421415875,1777605032000,-500.0,0.00011659,2]
[421415873,1777605032000,-500.0,0.00011659,2]
[421415862,1777605032000,-151.0,0.00011619,2]
[421415855,1777605032000,-290.26104003,0.00011399,2]
[421415856,1777605032000,-151.0,0.00011454,2]
[421415851,1777605032000,-338.57118638,0.00011399,2]
[421415859,1777605032000,-1828.75614849,0.00011574,2]
[421415860,1777605032000,-4562.62741312,0.00011574,2]
[421415853,1777605032000,-181.08010149,0.00011399,2]
[421415852,1777605032000,-5443.72677307,0.00011399,2]
[421415854,1777605032000,-151.0,0.00011399,2]
[421415849,1777605032000,-779.3713482,0.00011399,2]
[421415863,1777605032000,-150.0,0.00011626,2]
[421415850,1777605032000,-1428.38747117,0.00011399,2]
[421415847,1777605032000,-2165.85247465,0.00011085,2]
[421415848,1777605032000,-150.0,0.00011398,2]
[421415858,1777605032000,-151.0,0.00011564,2]
[421415861,1777605032000,-217.94669982,0.00011574,2]
[421415894,1777605032000,-500.0,0.00011659,2]
[421415871,1777605032000,-500.0,0.00011659,2]
[421415870,1777605032000,-344.02309903,0.00011659,2]
[421415897,1777605032000,-3787.19065749,0.0001166,2]
[421415896,1777605032000,-7382.07404478,0.0001166,2]
[421415895,1777605032000,-226107.32218686,0.0001166,2]
[421415893,1777605032000,-500.0,0.00011659,2]
[421415890,1777605032000,-500.0,0.00011659,2]
[421415892,1777605032000,-500.0,0.00011659,2]
[421415891,1777605032000,-500.0,0.00011659,2]
[421415888,1777605032000,-500.0,0.00011659,2]
[421415889,1777605032000,-500.0,0.00011659,2]
[421415885,1777605032000,-500.0,0.00011659,2]
[421415884,1777605032000,-500.0,0.00011659,2]
[421415882,1777605032000,-500.0,0.00011659,2]
[421415881,1777605032000,-500.0,0.00011659,2]
[421415883,1777605032000,-500.0,0.00011659,2]
[421415877,1777605032000,-500.0,0.00011659,2]
[421415887,1777605032000,-500.0,0.00011659,2]
[421415880,1777605032000,-500.0,0.00011659,2]
[421415878,1777605032000,-500.0,0.00011659,2]
[421415876,1777605032000,-500.0,0.00011659,2]
[421415879,1777605032000,-500.0,0.00011659,2]
[421415886,1777605032000,-406.11756643,0.00011659,2]
[421415904,1777605038000,-465.55537377,0.0001166,2]
[421415905,1777605038000,-12148.56389658,0.0001166,2]
[421415906,1777605038000,-22921.64023375,0.0001166,2]
[421415907,1777605038000,-937.5,0.0001166,2]
[421415908,1777605038000,-1898.96099122,0.0001166,2]
[421415911,1777605038000,-364.16285392,0.0001166,2]
[421415910,1777605038000,-1133.10000002,0.0001166,2]
[421415912,1777605038000,-436.74229893,0.0001166,2]
[421415909,1777605038000,-2298.27441512,0.0001166,2]
[421416158,1777605040000,-55.38395412,0.0001166,2]
[421416142,1777605040000,-394.07604548,0.0001166,2]
[421416140,1777605040000,-56868.15687049,0.0001166,2]
[421416480,1777605043000,-27630.40812058,0.0001166,2]
[421416659,1777605046000,-329209.4568,0.0001166,2]
[421416660,1777605337000,471.0,0.00030136,120]
[421416661,1777606000000,250.0,0.00028493,120]
[421416663,1777606051000,-393.78057495,0.00010707,2]
[421416684,1777606232000,-1200.0,0.00011497,2]
[421416688,1777606232000,-2603.61614283,0.000115,2]
[421416685,1777606232000,-1200.0,0.00011498,2]
[421416686,1777606232000,-300.0,0.00011499,2]
[421416687,1777606232000,-2357.01856204,0.000115,2]
[421416682,1777606232000,-300.0,0.00011497,2]
[421416689,1777606232000,-151.0,0.00011553,2]
[421416675,1777606232000,-106.21942505,0.00010707,2]
[421416681,1777606232000,-203.13260949,0.00011437,2]
[421416678,1777606232000,-169.26,0.00010959,2]
[421416679,1777606232000,-501.0,0.0001126,2]
[421416677,1777606232000,-10.65650992,0.00010834,2]
[421416676,1777606232000,-153.57349008,0.00010834,2]
[421416680,1777606232000,-149.07058783,0.00011437,2]
[421416683,1777606232000,-300.0,0.00011497,2]
[421416692,1777606232000,-300.0,0.00011574,2]
[421416701,1777606232000,-839.1202255,0.00011651,2]
[421416691,1777606232000,-3608.3089,0.00011559,2]
[421416705,1777606232000,-151.45150395,0.00011653,2]
[421416704,1777606232000,-1428.38747117,0.00011653,2]
[421416700,1777606232000,-5083.0791636,0.00011651,2]
[421416698,1777606232000,-223.57178869,0.0001163,2]
[421416697,1777606232000,-150.0,0.0001163,2]
[421416702,1777606232000,-150.0,0.00011652,2]
[421416695,1777606232000,-150.0,0.0001163,2]
[421416694,1777606232000,-150.0,0.0001163,2]
[421416699,1777606232000,-193.6880214,0.00011651,2]
[421416703,1777606232000,-743.50770149,0.00011653,2]
[421416690,1777606232000,-174.61919141,0.00011553,2]
[421416693,1777606232000,-151.0,0.00011608,2]
[421416696,1777606232000,-150.0,0.0001163,2]
[421416714,1777606233000,-770.40416314,0.0001176,2]
[421416712,1777606233000,-161.0,0.0001167,2]
[421416711,1777606233000,-151.0,0.00011663,2]
[421416710,1777606233000,-3619.256,0.0001166,2]
[421416707,1777606233000,-151.0,0.00011657,2]
[421416708,1777606233000,-1000.0,0.00011658,2]
[421416706,1777606233000,-287.66674734,0.00011653,2]
[421416713,1777606233000,-151.0,0.00011718,2]
[421416709,1777606233000,-156.492,0.0001166,2]
[421416715,1777606233000,-151.0,0.00011773,2]
[421416717,1777606233000,-250.0,0.00011778,2]
[421416716,1777606233000,-5000.0,0.00011778,2]
[421416719,1777606233000,-192.63646,0.0001188,2]
[421416726,1777606233000,-735.95364504,0.00011899,2]
[421416725,1777606233000,-1085.39999998,0.00011899,2]
[421416724,1777606233000,-1281.47839901,0.00011899,2]
[421416727,1777606233000,-1092.11642928,0.00011899,2]
[421416721,1777606233000,-192.63646,0.0001188,2]
[421416722,1777606233000,-192.63646,0.0001188,2]
[421416720,1777606233000,-192.63646,0.0001188,2]
[421416718,1777606233000,-151.0,0.00011828,2]
[421416723,1777606233000,-918.90027603,0.00011899,2]
[421416734,1777606241000,-216.05758609,0.00011397,2]
[421416735,1777606241000,-3732.378058,0.000114,2]
[421416742,1777606241000,-795.96980857,0.000119,2]
[421416746,1777606241000,-1412.50387832,0.0001199,2]
[421416738,1777606241000,-192.28008867,0.000119,2]
[421416747,1777606241000,-151.0,0.00011997,2]
[421416739,1777606241000,-1899.87444308,0.000119,2]
[421416745,1777606241000,-266.2893602,0.00011973,2]
[421416744,1777606241000,-293.42571564,0.00011972,2]
[421416736,1777606241000,-513.60277543,0.0001176,2]
[421416740,1777606241000,-3992.29898648,0.000119,2]
[421416743,1777606241000,-200.0,0.00011904,2]
[421416737,1777606241000,-414.62571252,0.00011899,2]
[421416748,1777606241000,-155.765,0.00011999,2]
[421416751,1777606241000,-197.31909746,0.00011999,2]
[421416750,1777606241000,-413.77957296,0.00011999,2]
[421416749,1777606241000,-425.88,0.00011999,2]
[421416754,1777606241000,-389.373525,0.00011999,2]
[421416756,1777606241000,-360.80945835,0.00011999,2]
[421416741,1777606241000,-217.94669982,0.000119,2]
[421416857,1777606242000,-43.75339721,0.00011999,2]
[421416866,1777606242000,-324.4915186,0.00011999,2]
[421416860,1777606242000,-550.32129729,0.00011999,2]
[421416864,1777606242000,-128.28189998,0.00011999,2]
[421416862,1777606242000,-10.90864167,0.00011999,2]
[421416986,1777606243000,-500.0,0.00011999,2]
[421416988,1777606243000,-500.0,0.00011999,2]
[421416999,1777606243000,-500.0,0.00011999,2]
[421417001,1777606243000,-500.0,0.00011999,2]
[421417003,1777606243000,-500.0,0.00011999,2]
[421417007,1777606243000,-500.0,0.00011999,2]
[421417017,1777606243000,-500.0,0.00011999,2]
[421417011,1777606243000,-500.0,0.00011999,2]
[421417019,1777606243000,-500.0,0.00011999,2]
[421417023,1777606243000,-500.0,0.00011999,2]
[421417013,1777606243000,-500.0,0.00011999,2]
[421417021,1777606243000,-500.0,0.00011999,2]
[421416994,1777606243000,-614.69550443,0.00011999,2]
[421417015,1777606243000,-500.0,0.00011999,2]
[421417005,1777606243000,-500.0,0.00011999,2]
[421416992,1777606243000,-500.0,0.00011999,2]
[421416964,1777606243000,-500.0,0.00011999,2]
[421416997,1777606243000,-500.0,0.00011999,2]
[421416972,1777606243000,-500.0,0.00011999,2]
[421416970,1777606243000,-500.0,0.00011999,2]
[421416960,1777606243000,-624.649,0.00011792,2]
[421416976,1777606243000,-500.0,0.00011999,2]
[421416962,1777606243000,-500.0,0.00011999,2]
[421416974,1777606243000,-500.0,0.00011999,2]
[421416961,1777606243000,-175.5084814,0.00011999,2]
[421416963,1777606243000,-500.0,0.00011999,2]
[421416968,1777606243000,-500.0,0.00011999,2]
[421416966,1777606243000,-500.0,0.00011999,2]
[421417025,1777606243000,-200.0,0.00011999,2]
[421416978,1777606243000,-500.0,0.00011999,2]
[421416980,1777606243000,-500.0,0.00011999,2]
[421416982,1777606243000,-500.0,0.00011999,2]
[421416984,1777606243000,-500.0,0.00011999,2]
[421416990,1777606243000,-500.0,0.00011999,2]
[421417029,1777606243000,-256.28938896,0.00011999,2]
[421417009,1777606243000,-500.0,0.00011999,2]
[421417031,1777606243000,-652962.45602633,0.00012,2]
[421417068,1777606243000,-150.0,0.00012744,2]
[421417075,1777606243000,-250.0,0.00013,2]
[421417066,1777606243000,-255.0,0.00012724,2]
[421417079,1777606243000,-380.52932165,0.00013034,2]
[421417077,1777606243000,-2699.05078334,0.00013034,2]
[421417081,1777606243000,-228.84124439,0.00013045,2]
[421417085,1777606243000,-352.57692757,0.00013526,2]
[421417083,1777606243000,-425.88,0.00013095,2]
[421417093,1777606243000,-200.0,0.00013699,2]
[421417089,1777606243000,-500.0,0.00013698,2]
[421417087,1777606243000,-164.23,0.00013542,2]
[421417091,1777606243000,-649.56922715,0.00013698,2]
[421417027,1777606243000,-466.10965609,0.00011999,2]
[421417097,1777606243000,-380.0,0.00013699,2]
[421417099,1777606243000,-380.0,0.00013699,2]
[421417073,1777606243000,-1579.0,0.00012893,2]
[421417064,1777606243000,-425.88,0.00012547,2]
[421417095,1777606243000,-380.0,0.00013699,2]
[421417070,1777606243000,-425.88,0.00012821,2]
[421417063,1777606243000,-162.38278084,0.00012541,2]
[421417043,1777606243000,-151.86157698,0.00012,2]
[421417033,1777606243000,-153.72273235,0.00012,2]
[421417044,1777606243000,-885.0,0.00012,2]
[421417048,1777606243000,-307.0,0.00012,2]
[421417039,1777606243000,-1547.57360743,0.00012,2]
[421417037,1777606243000,-1534.0,0.00012,2]
[421417034,1777606243000,-1534.0,0.00012,2]
[421417051,1777606243000,-192.63646,0.00012,2]
[421417041,1777606243000,-151.0,0.00012,2]
[421417053,1777606243000,-192.63646,0.00012,2]
[421417055,1777606243000,-164.23,0.00012188,2]
[421417056,1777606243000,-153.72,0.000122,2]
[421417061,1777606243000,-425.88,0.00012273,2]
[421417046,1777606243000,-263554.5738129,0.00012,2]
[421417059,1777606243000,-1418.56841899,0.00012201,2]
[421417183,1777606244000,-380.0,0.00013699,2]
[421417185,1777606244000,-355.0,0.00013699,2]
[421417222,1777606244000,-956.0,0.00015,2]
[421417179,1777606244000,-380.0,0.00013699,2]
[421417181,1777606244000,-380.0,0.00013699,2]
[421417167,1777606244000,-380.0,0.00013699,2]
[421417163,1777606244000,-380.0,0.00013699,2]
[421417173,1777606244000,-380.0,0.00013699,2]
[421417169,1777606244000,-380.0,0.00013699,2]
[421417175,1777606244000,-380.0,0.00013699,2]
[421417165,1777606244000,-197.70251672,0.00013699,2]
[421417187,1777606244000,-380.0,0.00013699,2]
[421417177,1777606244000,-380.0,0.00013699,2]
[421417197,1777606244000,-380.0,0.00013699,2]
[421417205,1777606244000,-1275.085,0.00014492,2]
[421417201,1777606244000,-1096.3217486,0.00013699,2]
[421417189,1777606244000,-380.0,0.00013699,2]
[421417193,1777606244000,-380.0,0.00013699,2]
[421417191,1777606244000,-380.0,0.00013699,2]
[421417203,1777606244000,-150.601,0.00014492,2]
[421417195,1777606244000,-380.0,0.00013699,2]
[421417207,1777606244000,-1220.0,0.00014492,2]
[421417209,1777606244000,-1664.0,0.00014492,2]
[421417211,1777606244000,-3533.0,0.00014492,2]
[421417215,1777606244000,-244.7600768,0.00014902,2]
[421417217,1777606244000,-503.36008842,0.00014937,2]
[421417220,1777606244000,-270.0,0.00015,2]
[421417213,1777606244000,-164.23,0.00014897,2]
[421417199,1777606244000,-387.0,0.00013699,2]
[421417161,1777606244000,-380.0,0.00013699,2]
[421417280,1777606244000,-164.0,0.0002005,2]
[421417159,1777606244000,-380.0,0.00013699,2]
[421417223,1777606244000,-657.0,0.00015,2]
[421417103,1777606244000,-380.0,0.00013699,2]
[421417101,1777606244000,-380.0,0.00013699,2]
[421417106,1777606244000,-380.0,0.00013699,2]
[421417108,1777606244000,-380.0,0.00013699,2]
[421417118,1777606244000,-380.0,0.00013699,2]
[421417120,1777606244000,-380.0,0.00013699,2]
[421417122,1777606244000,-380.0,0.00013699,2]
[421417124,1777606244000,-380.0,0.00013699,2]
[421417126,1777606244000,-380.0,0.00013699,2]
[421417116,1777606244000,-380.0,0.00013699,2]
[421417114,1777606244000,-380.0,0.00013699,2]
[421417112,1777606244000,-380.0,0.00013699,2]
[421417110,1777606244000,-380.0,0.00013699,2]
[421417128,1777606244000,-380.0,0.00013699,2]
[421417130,1777606244000,-380.0,0.00013699,2]
[421417145,1777606244000,-380.0,0.00013699,2]
[421417132,1777606244000,-380.0,0.00013699,2]
[421417143,1777606244000,-380.0,0.00013699,2]
[421417147,1777606244000,-380.0,0.00013699,2]
[421417138,1777606244000,-380.0,0.00013699,2]
[421417151,1777606244000,-380.0,0.00013699,2]
[421417136,1777606244000,-380.0,0.00013699,2]
[421417140,1777606244000,-380.0,0.00013699,2]
[421417134,1777606244000,-380.0,0.00013699,2]
[421417149,1777606244000,-380.0,0.00013699,2]
[421417153,1777606244000,-380.0,0.00013699,2]
[421417155,1777606244000,-380.0,0.00013699,2]
[421417157,1777606244000,-380.0,0.00013699,2]
[421417171,1777606244000,-380.0,0.00013699,2]
[421417225,1777606244000,-1899.87444306,0.00015111,2]
[421417302,1777606244000,-281.263248,0.00021042,7]
[421417228,1777606244000,-795.96980852,0.00015111,2]
[421417309,1777606244000,-200.0,0.00021141,2]
[421417313,1777606244000,-200.0,0.00021141,2]
[421417311,1777606244000,-200.0,0.00021141,2]
[421417319,1777606244000,-200.0,0.00021141,2]
[421417306,1777606244000,-200.0,0.00021141,2]
[421417315,1777606244000,-200.0,0.00021141,2]
[421417296,1777606244000,-151.0,0.00020492,2]
[421417317,1777606244000,-200.0,0.00021141,2]
[421417300,1777606244000,-152.0,0.00020816,3]
[421417304,1777606244000,-164.0,0.0002105,2]
[421417321,1777606244000,-260.96,0.00021141,2]
[421417332,1777606244000,-5000.0,0.00021918,2]
[421417324,1777606244000,-3537.05399185,0.00021471,44]
[421417298,1777606244000,-151.0,0.00020492,2]
[421417326,1777606244000,-163.002835,0.00021479,7]
[421417336,1777606244000,-164.0,0.0002205,2]
[421417338,1777606244000,-333.33333334,0.00022407,2]
[421417328,1777606244000,-195.105841,0.00021479,7]
[421417341,1777606244000,-1645.0,0.00022825,3]
[421417343,1777606244000,-182.71189305,0.0002305,2]
[421417330,1777606244000,-1899.87444306,0.00021533,2]
[421417345,1777606244000,-152.0,0.00023101,4]
[421417350,1777606244000,-228.325562,0.00023764,14]
[421417352,1777606244000,-7337.0,0.000245,2]
[421417356,1777606244000,-179.94,0.00024658,2]
[421417358,1777606244000,-179.53,0.00024658,2]
[421417348,1777606244000,-1134.1882678,0.00023418,2]
[421417233,1777606244000,-2818.29,0.0001531,2]
[421417334,1777606244000,-165.52,0.00022,2]
[421417294,1777606244000,-151.0,0.00020492,2]
[421417354,1777606244000,-1000.0,0.00024658,2]
[421417290,1777606244000,-496.962,0.00020492,2]
[421417230,1777606244000,-3287.67,0.0001531,2]
[421417232,1777606244000,-445.22,0.0001531,2]
[421417235,1777606244000,-279.0,0.00015342,2]
[421417237,1777606244000,-3992.29898643,0.00016186,2]
[421417239,1777606244000,-164.23,0.00016251,2]
[421417241,1777606244000,-818.69,0.00016438,5]
[421417243,1777606244000,-151.0,0.000165,2]
[421417250,1777606244000,-1267.0,0.00017492,2]
[421417292,1777606244000,-151.0,0.00020492,2]
[421417247,1777606244000,-251.07789659,0.00017385,2]
[421417256,1777606244000,-3330.118,0.00017492,2]
[421417254,1777606244000,-1664.0,0.00017492,2]
[421417258,1777606244000,-151.0,0.00018,2]
[421417252,1777606244000,-1220.0,0.00017492,2]
[421417246,1777606244000,-3100.92728216,0.00016536,12]
[421417260,1777606244000,-164.0,0.0001805,2]
[421417288,1777606244000,-364.517,0.00020492,2]
[421417262,1777606244000,-1899.87444306,0.00018322,2]
[421417286,1777606244000,-1267.0,0.00020492,2]
[421417282,1777606244000,-500.0,0.00020219,2]
[421417284,1777606244000,-3992.29898643,0.00020471,2]
[421417276,1777606244000,-151.0,0.0002,2]
[421417274,1777606244000,-926.0,0.0002,2]
[421417270,1777606244000,-868.0,0.0002,2]
[421417278,1777606244000,-151.0,0.0002,2]
[421417268,1777606244000,-151.0,0.000195,2]
[421417264,1777606244000,-795.96980852,0.00018322,2]
[421417266,1777606244000,-164.0,0.0001905,2]
[421417272,1777606244000,-865.0,0.0002,2]
[421417439,1777606245000,-357.806648,0.00027397,2]
[421417446,1777606245000,-151.0,0.000274,7]
[421417444,1777606245000,-212.07,0.000274,7]
[421417442,1777606245000,-17756.26,0.00027397,10]
[421417429,1777606245000,-357.806648,0.00027397,2]
[421417433,1777606245000,-357.806648,0.00027397,2]
[421417425,1777606245000,-357.806648,0.00027397,2]
[421417427,1777606245000,-357.806648,0.00027397,2]
[421417435,1777606245000,-357.806648,0.00027397,2]
[421417423,1777606245000,-21307.52,0.00027397,10]
[421417437,1777606245000,-357.806648,0.00027397,2]
[421417456,1777606245000,-164.27131059,0.00028157,2]
[421417479,1777606245000,-153.063152,0.00029232,7]
[421417452,1777606245000,-151.0,0.00028,5]
[421417460,1777606245000,-159.58,0.0002863,2]
[421417458,1777606245000,-159.94,0.0002863,2]
[421417450,1777606245000,-1899.87444306,0.00027956,2]
[421417469,1777606245000,-159.58,0.00028931,7]
[421417465,1777606245000,-469.96,0.00028803,2]
[421417454,1777606245000,-394.82410018,0.00028157,5]
[421417462,1777606245000,-200.0,0.00028767,2]
[421417467,1777606245000,-159.94,0.00028931,7]
[421417471,1777606245000,-469.96,0.00028983,2]
[421417475,1777606245000,-200.0,0.00029055,2]
[421417477,1777606245000,-469.96,0.00029163,2]
[421417419,1777606245000,-17658.64,0.00027397,10]
[421417448,1777606245000,-152.0,0.00027671,6]
[421417421,1777606245000,-25569.02,0.00027397,10]
[421417391,1777606245000,-500.0,0.00027255,15]
[421417418,1777606245000,-185.407888,0.00027397,2]
[421417473,1777606245000,-3992.29898643,0.00029043,2]
[421417367,1777606245000,-152.35591,0.00025,2]
[421417365,1777606245000,-169.18876038,0.00025,60]
[421417360,1777606245000,-1899.87444306,0.00024744,2]
[421417362,1777606245000,-3992.29898643,0.00024757,2]
[421417369,1777606245000,-5528.0,0.000253,3]
[421417371,1777606245000,-152.0,0.00025386,5]
[421417382,1777606245000,-4061.24404267,0.00026407,64]
[421417376,1777606245000,-5528.0,0.00026,5]
[421417380,1777606245000,-500.0,0.00026301,2]
[421417384,1777606245000,-179.94,0.00026484,7]
[421417373,1777606245000,-151.0,0.000254,5]
[421417378,1777606245000,-253.0716098,0.00026043,2]
[421417389,1777606245000,-501.8,0.00027255,15]
[421417386,1777606245000,-179.53,0.00026484,7]
[421417395,1777606245000,-190.94551754,0.000273,30]
[421417393,1777606245000,-190.94551756,0.000273,30]
[421417399,1777606245000,-180.2,0.00027397,2]
[421417403,1777606245000,-180.2,0.00027397,2]
[421417397,1777606245000,-259.55314472,0.00027373,2]
[421417401,1777606245000,-180.2,0.00027397,2]
[421417410,1777606245000,-151.0,0.00027397,2]
[421417408,1777606245000,-151.0,0.00027397,2]
[421417406,1777606245000,-180.2,0.00027397,2]
[421417413,1777606245000,-151.869007,0.00027397,2]
[421417417,1777606245000,-151.0,0.00027397,2]
[421417415,1777606245000,-151.194366,0.00027397,2]
[421417431,1777606245000,-357.806648,0.00027397,2]
[421417483,1777606245000,-151.0,0.00029232,7]
[421417490,1777606245000,-159.6,0.00029232,30]